[Event "Titled Tuesday Blitz March 15 Late 2022"]
[White "Palachev, Petr"]
[Black "Travadon, Loic"]
[WhiteFideId "24129003"]
[BlackFideId "26092131"]
[WhiteElo "2339"]
[BlackElo "2095"]
[Result "0-1"]
[Round "03"]
[TimeControl "180+1"]
[Date "2022.03.15"]
[WhiteClock "0:00:52"]
[BlackClock "0:01:00"]

1. d4 {[%clk 0:02:55]}  g6 {[%clk 0:03:00]} 2. e4 {[%clk 0:02:54]}  Bg7 {[%clk 0:03:00]} 3. Nc3 {[%clk 0:02:55]}  d6 {[%clk 0:03:00]} 4. Nf3 {[%clk 0:02:55]}  Nd7 {[%clk 0:03:00]} 5. Be3 {[%clk 0:02:54]}  e6 {[%clk 0:03:00]} 6. Qd2 {[%clk 0:02:54]}  h6 {[%clk 0:02:58]} 7. O-O-O {[%clk 0:02:52]}  Ne7 {[%clk 0:02:59]} 8. h4 {[%clk 0:02:29]}  a6 {[%clk 0:02:58]} 9. h5 {[%clk 0:02:29]}  g5 {[%clk 0:02:57]} 10. Nxg5 {[%clk 0:02:28]}  hxg5 {[%clk 0:02:54]} 11. Bxg5 {[%clk 0:02:29]}  b5 {[%clk 0:02:51]} 12. h6 {[%clk 0:02:29]}  Bf6 {[%clk 0:02:48]} 13. h7 {[%clk 0:02:16]}  Bxg5 {[%clk 0:02:45]} 14. Qxg5 {[%clk 0:02:17]}  Ng6 {[%clk 0:02:45]} 15. Qe3 {[%clk 0:02:14]}  Qf6 {[%clk 0:02:45]} 16. g3 {[%clk 0:02:13]}  b4 {[%clk 0:02:43]} 17. Bg2 {[%clk 0:02:04]}  Qg7 {[%clk 0:02:38]} 18. e5 {[%clk 0:02:04]}  d5 {[%clk 0:02:38]} 19. Nxd5 {[%clk 0:02:01]}  exd5 {[%clk 0:02:36]} 20. Bxd5 {[%clk 0:02:02]}  Rb8 {[%clk 0:02:35]} 21. e6 {[%clk 0:01:59]}  fxe6 {[%clk 0:02:22]} 22. Bxe6 {[%clk 0:02:00]}  Ne7 {[%clk 0:02:17]} 23. d5 {[%clk 0:01:57]}  Rxh7 {[%clk 0:02:12]} 24. Rxh7 {[%clk 0:01:52]}  Qxh7 {[%clk 0:02:13]} 25. d6 {[%clk 0:01:53]}  cxd6 {[%clk 0:02:12]} 26. Rxd6 {[%clk 0:01:54]}  Rb5 {[%clk 0:02:04]} 27. Qf4 {[%clk 0:01:45]}  Rc5 {[%clk 0:01:58]} 28. Bb3 {[%clk 0:01:43]}  Rf5 {[%clk 0:01:52]} 29. Qxb4 {[%clk 0:01:40]}  Nc5 {[%clk 0:01:52]} 30. Ba4+ {[%clk 0:01:26]}  Nxa4 {[%clk 0:01:52]} 31. Qxa4+ {[%clk 0:01:27]}  Rb5 {[%clk 0:01:52]} 32. c4 {[%clk 0:01:18]}  Qh1+ {[%clk 0:01:51]} 33. Kd2 {[%clk 0:01:13]}  Qe4 {[%clk 0:01:45]} 34. b3 {[%clk 0:01:12]}  Qe5 {[%clk 0:01:41]} 35. cxb5 {[%clk 0:01:08]}  Qxd6+ {[%clk 0:01:39]} 36. Kc1 {[%clk 0:01:00]}  Qc5+ {[%clk 0:01:39]} 37. Kb2 {[%clk 0:00:59]}  axb5 {[%clk 0:01:38]} 38. Qa5 {[%clk 0:00:55]}  Qxf2+ {[%clk 0:01:38]} 39. Ka3 {[%clk 0:00:55]}  Qc5+ {[%clk 0:01:37]} 40. Kb2 {[%clk 0:00:56]}  Qd4+ {[%clk 0:01:37]} 41. Qc3 {[%clk 0:00:50]}  Qxc3+ {[%clk 0:01:36]} 42. Kxc3 {[%clk 0:00:51]}  Bd7 {[%clk 0:01:36]} 43. Kb4 {[%clk 0:00:51]}  Kd8 {[%clk 0:01:36]} 44. a4 {[%clk 0:00:47]}  bxa4 {[%clk 0:01:35]} 45. bxa4 {[%clk 0:00:48]}  Nc6+ {[%clk 0:01:34]} 46. Kb5 {[%clk 0:00:48]}  Nd4+ {[%clk 0:01:34]} 47. Kc5 {[%clk 0:00:47]}  Ne2 {[%clk 0:01:33]} 48. a5 {[%clk 0:00:43]}  Kc7 {[%clk 0:01:33]} 49. Kd5 {[%clk 0:00:41]}  Nxg3 {[%clk 0:01:32]} 50. Kc5 {[%clk 0:00:42]}  Nf1 {[%clk 0:01:32]} 51. Kd5 {[%clk 0:00:43]}  Nd2 {[%clk 0:01:32]} 52. Kc5 {[%clk 0:00:44]}  Ne4+ {[%clk 0:01:31]} 53. Kb4 {[%clk 0:00:43]}  Nd6 {[%clk 0:01:31]} 54. Kc5 {[%clk 0:00:43]}  Nc8 {[%clk 0:01:32]} 55. a6 {[%clk 0:00:43]}  Na7 {[%clk 0:01:33]} 56. Kb4 {[%clk 0:00:43]}  Bb5 {[%clk 0:01:33]} 57. Kc5 {[%clk 0:00:43]}  Bxa6 {[%clk 0:01:33]} 58. Kd4 {[%clk 0:00:44]}  Kd6 {[%clk 0:01:32]} 59. Ke4 {[%clk 0:00:45]}  Nc6 {[%clk 0:01:32]} 60. Ke3 {[%clk 0:00:44]}  Ke5 {[%clk 0:01:31]} 61. Kd2 {[%clk 0:00:45]}  Kd4 {[%clk 0:01:31]} 62. Kc2 {[%clk 0:00:44]}  Bc4 {[%clk 0:01:30]} 63. Kb2 {[%clk 0:00:45]}  Nb4 {[%clk 0:01:31]} 64. Ka3 {[%clk 0:00:44]}  Kc3 {[%clk 0:01:30]} 65. Ka4 {[%clk 0:00:44]}  Nc6 {[%clk 0:01:30]} 66. Ka3 {[%clk 0:00:45]}  Bd3 {[%clk 0:01:30]} 67. Ka2 {[%clk 0:00:45]}  Nb4+ {[%clk 0:01:27]} 68. Ka1 {[%clk 0:00:46]}  Nd5 {[%clk 0:01:26]} 69. Ka2 {[%clk 0:00:47]}  Ne3 {[%clk 0:01:19]} 70. Ka1 {[%clk 0:00:48]}  Nf1 {[%clk 0:01:19]} 71. Ka2 {[%clk 0:00:49]}  Nd2 {[%clk 0:01:20]} 72. Ka1 {[%clk 0:00:49]}  Nb3+ {[%clk 0:01:20]} 73. Ka2 {[%clk 0:00:50]}  Bh7 {[%clk 0:01:20]} 74. Ka3 {[%clk 0:00:50]}  Bb1 {[%clk 0:01:21]} 75. Ka4 {[%clk 0:00:51]}  Nd4 {[%clk 0:01:21]} 76. Ka5 {[%clk 0:00:51]}  Kc4 {[%clk 0:01:21]} 77. Kb6 {[%clk 0:00:52]}  Nb5 {[%clk 0:01:18]} 78. Kc6 {[%clk 0:00:52]}  Bf5 {[%clk 0:01:18]} 79. Kb6 {[%clk 0:00:52]}  Bd7 {[%clk 0:01:18]} 80. Ka5 {[%clk 0:00:53]}  Kc5 {[%clk 0:01:07]} 81. Ka4 {[%clk 0:00:53]}  Be6 {[%clk 0:01:06]} 82. Ka5 {[%clk 0:00:52]}  Bb3 {[%clk 0:01:05]} 83. Ka6 {[%clk 0:00:52]}  Nd6 {[%clk 0:01:06]} 84. Ka5 {[%clk 0:00:52]}  Bd1 {[%clk 0:01:05]} 85. Ka6 {[%clk 0:00:52]}  Bc2 {[%clk 0:01:03]} 86. Ka5 {[%clk 0:00:53]}  Nb7+ {[%clk 0:01:03]} 87. Ka6 {[%clk 0:00:53]}  Kc6 {[%clk 0:01:04]} 88. Ka7 {[%clk 0:00:54]}  Nd6 {[%clk 0:01:04]} 89. Ka6 {[%clk 0:00:54]}  Nb7 {[%clk 0:01:04]} 90. Ka7 {[%clk 0:00:54]}  Kc7 {[%clk 0:01:04]} 91. Ka6 {[%clk 0:00:53]}  Bd3+ {[%clk 0:01:05]} 92. Ka7 {[%clk 0:00:54]}  Nd6 {[%clk 0:00:59]} 93. Ka8 {[%clk 0:00:53]}  Bf1 {[%clk 0:01:00]} 94. Ka7 {[%clk 0:00:52]}  Nc8+ {[%clk 0:01:00]} 0-1


[Site "https://www.chess.com"]

[Event "Titled Tuesday Blitz March 15 Late 2022"]
[White "Plazuelo Pascual, Juan"]
[Black "Martinez Alcantara, Jose Eduardo"]
[WhiteFideId "32059566"]
[BlackFideId "3805662"]
[WhiteElo "2364"]
[BlackElo "2690"]
[Result "0-1"]
[Round "03"]
[TimeControl "180+1"]
[Date "2022.03.16"]
[WhiteClock "0:00:05"]
[BlackClock "0:00:05"]

1. Nf3 {[%clk 0:02:58]}  c5 {[%clk 0:03:00]} 2. g3 {[%clk 0:02:57]}  Nc6 {[%clk 0:03:00]} 3. Bg2 {[%clk 0:02:53]}  g6 {[%clk 0:03:01]} 4. O-O {[%clk 0:02:49]}  Bg7 {[%clk 0:03:01]} 5. c3 {[%clk 0:02:49]}  e5 {[%clk 0:03:01]} 6. e4 {[%clk 0:02:50]}  Nge7 {[%clk 0:03:01]} 7. d3 {[%clk 0:02:48]}  O-O {[%clk 0:03:01]} 8. Re1 {[%clk 0:02:49]}  d6 {[%clk 0:02:59]} 9. a4 {[%clk 0:02:44]}  h6 {[%clk 0:02:59]} 10. Na3 {[%clk 0:02:44]}  Be6 {[%clk 0:02:58]} 11. Nc4 {[%clk 0:02:43]}  Qd7 {[%clk 0:02:53]} 12. a5 {[%clk 0:02:23]}  Rad8 {[%clk 0:02:51]} 13. Qa4 {[%clk 0:02:21]}  Kh7 {[%clk 0:02:49]} 14. Nfd2 {[%clk 0:02:14]}  f5 {[%clk 0:02:39]} 15. exf5 {[%clk 0:02:10]}  gxf5 {[%clk 0:02:40]} 16. a6 {[%clk 0:02:07]}  b6 {[%clk 0:02:35]} 17. b4 {[%clk 0:01:56]}  Nd5 {[%clk 0:02:16]} 18. bxc5 {[%clk 0:01:29]}  bxc5 {[%clk 0:02:13]} 19. Bb2 {[%clk 0:01:29]}  Nde7 {[%clk 0:01:48]} 20. d4 {[%clk 0:01:14]}  e4 {[%clk 0:01:34]} 21. dxc5 {[%clk 0:00:56]}  d5 {[%clk 0:01:34]} 22. Ne3 {[%clk 0:00:54]}  Ne5 {[%clk 0:01:30]} 23. Qxd7 {[%clk 0:00:43]}  Rxd7 {[%clk 0:01:31]} 24. Reb1 {[%clk 0:00:32]}  f4 {[%clk 0:01:12]} 25. Nc2 {[%clk 0:00:28]}  Nd3 {[%clk 0:01:05]} 26. Nd4 {[%clk 0:00:29]}  Bf7 {[%clk 0:00:27]} 27. c6 {[%clk 0:00:29]}  Rc7 {[%clk 0:00:27]} 28. Ba3 {[%clk 0:00:29]}  Rfc8 {[%clk 0:00:18]} 29. Nxe4 {[%clk 0:00:28]}  dxe4 {[%clk 0:00:12]} 30. Bxe4+ {[%clk 0:00:28]}  Bg6 {[%clk 0:00:13]} 31. Bxg6+ {[%clk 0:00:23]}  Kxg6 {[%clk 0:00:11]} 32. Ne6 {[%clk 0:00:24]}  Rxc6 {[%clk 0:00:11]} 33. Nxg7 {[%clk 0:00:24]}  Nd5 {[%clk 0:00:09]} 34. Rb7 {[%clk 0:00:23]}  f3 {[%clk 0:00:05]} 35. h4 {[%clk 0:00:23]}  Nxc3 {[%clk 0:00:04]} 36. h5+ {[%clk 0:00:21]}  Kg5 {[%clk 0:00:04]} 37. Be7+ {[%clk 0:00:17]}  Kg4 {[%clk 0:00:03]} 38. Bh4 {[%clk 0:00:09]}  Kh3 {[%clk 0:00:04]} 39. Nf5 {[%clk 0:00:04]}  Ne2+ {[%clk 0:00:05]} 40. Kf1 {[%clk 0:00:05]}  Rc1+ {[%clk 0:00:05]} 0-1


[Site "https://www.chess.com"]

[Event "Titled Tuesday Blitz March 15 Late 2022"]
[White "Risteski, Emil"]
[Black "Vovk, Orest"]
[WhiteFideId "15005267"]
[BlackFideId "14113490"]
[WhiteElo "2070"]
[BlackElo "2203"]
[Result "0-1"]
[Round "03"]
[TimeControl "180+1"]
[Date "2022.03.16"]
[WhiteClock "0:00:06"]
[BlackClock "0:01:14"]

1. e4 {[%clk 0:02:19]}  Nc6 {[%clk 0:02:57]} 2. Nf3 {[%clk 0:02:19]}  d5 {[%clk 0:02:56]} 3. exd5 {[%clk 0:02:17]}  Qxd5 {[%clk 0:02:56]} 4. Nc3 {[%clk 0:02:18]}  Qa5 {[%clk 0:02:56]} 5. Bb5 {[%clk 0:02:18]}  Bd7 {[%clk 0:02:56]} 6. O-O {[%clk 0:02:11]}  O-O-O {[%clk 0:02:57]} 7. d4 {[%clk 0:02:06]}  a6 {[%clk 0:02:55]} 8. Bxc6 {[%clk 0:02:05]}  Bxc6 {[%clk 0:02:56]} 9. Ne5 {[%clk 0:02:05]}  Be8 {[%clk 0:02:56]} 10. Be3 {[%clk 0:01:56]}  f6 {[%clk 0:02:55]} 11. Nc4 {[%clk 0:01:55]}  Qh5 {[%clk 0:02:55]} 12. Qe1 {[%clk 0:01:42]}  Bf7 {[%clk 0:02:46]} 13. Nd2 {[%clk 0:01:26]}  e6 {[%clk 0:02:36]} 14. Rb1 {[%clk 0:01:25]}  Bd6 {[%clk 0:02:36]} 15. g3 {[%clk 0:01:20]}  Nh6 {[%clk 0:02:35]} 16. f3 {[%clk 0:01:16]}  Nf5 {[%clk 0:02:30]} 17. Bf2 {[%clk 0:01:15]}  Qh3 {[%clk 0:02:27]} 18. Nce4 {[%clk 0:01:12]}  Be7 {[%clk 0:02:19]} 19. c3 {[%clk 0:00:54]}  h5 {[%clk 0:02:18]} 20. b4 {[%clk 0:00:51]}  h4 {[%clk 0:02:17]} 21. g4 {[%clk 0:00:49]}  Ng3 {[%clk 0:01:49]} 22. hxg3 {[%clk 0:00:24]}  f5 {[%clk 0:01:49]} 23. Be3 {[%clk 0:00:12]}  fxe4 {[%clk 0:01:42]} 24. Nxe4 {[%clk 0:00:12]}  Bg6 {[%clk 0:01:36]} 25. Qe2 {[%clk 0:00:11]}  Bxe4 {[%clk 0:01:29]} 26. fxe4 {[%clk 0:00:11]}  hxg3 {[%clk 0:01:26]} 27. Qg2 {[%clk 0:00:11]}  Qxg4 {[%clk 0:01:25]} 28. Rf4 {[%clk 0:00:10]}  Qg6 {[%clk 0:01:21]} 29. Rf3 {[%clk 0:00:06]}  Qxe4 {[%clk 0:01:17]} 30. Rbf1 {[%clk 0:00:06]}  Bd6 {[%clk 0:01:14]} 0-1


[Site "https://www.chess.com"]

[Event "Titled Tuesday Blitz March 15 Late 2022"]
[White "Roberson, Peter T"]
[Black "Taichman, Ori"]
[WhiteFideId "412384"]
[BlackFideId "2804069"]
[WhiteElo "2346"]
[BlackElo "2227"]
[Result "0-1"]
[Round "03"]
[TimeControl "180+1"]
[Date "2022.03.16"]
[WhiteClock "0:00:48"]
[BlackClock "0:01:07"]

1. e4 {[%clk 0:02:37]}  c5 {[%clk 0:02:36]} 2. Na3 {[%clk 0:02:36]}  Nc6 {[%clk 0:02:35]} 3. Bb5 {[%clk 0:02:35]}  g6 {[%clk 0:02:33]} 4. f4 {[%clk 0:02:32]}  Bg7 {[%clk 0:02:32]} 5. Nf3 {[%clk 0:02:32]}  Nd4 {[%clk 0:02:33]} 6. Bc4 {[%clk 0:02:31]}  a6 {[%clk 0:02:19]} 7. c3 {[%clk 0:02:29]}  Nxf3+ {[%clk 0:02:19]} 8. Qxf3 {[%clk 0:02:30]}  b5 {[%clk 0:02:19]} 9. Be2 {[%clk 0:02:26]}  Bb7 {[%clk 0:02:18]} 10. O-O {[%clk 0:02:25]}  d5 {[%clk 0:02:18]} 11. d3 {[%clk 0:02:21]}  Qb6 {[%clk 0:02:00]} 12. exd5 {[%clk 0:02:16]}  Nf6 {[%clk 0:01:49]} 13. c4 {[%clk 0:02:16]}  e6 {[%clk 0:01:48]} 14. f5 {[%clk 0:02:07]}  O-O {[%clk 0:01:42]} 15. Bg5 {[%clk 0:02:05]}  exd5 {[%clk 0:01:40]} 16. Qh3 {[%clk 0:01:59]}  bxc4 {[%clk 0:01:30]} 17. dxc4 {[%clk 0:01:58]}  Qxb2 {[%clk 0:01:27]} 18. Bf3 {[%clk 0:01:59]}  Qxa3 {[%clk 0:01:26]} 19. Rab1 {[%clk 0:01:57]}  Bc8 {[%clk 0:01:16]} 20. Bxf6 {[%clk 0:01:45]}  Bxf5 {[%clk 0:01:14]} 21. Bxd5 {[%clk 0:01:46]}  Bxh3 {[%clk 0:01:13]} 22. Rb3 {[%clk 0:00:53]}  Qxa2 {[%clk 0:01:09]} 23. Rxh3 {[%clk 0:00:51]}  Bxf6 {[%clk 0:01:08]} 24. Rxf6 {[%clk 0:00:52]}  Rab8 {[%clk 0:01:07]} 25. Rhf3 {[%clk 0:00:48]} 0-1


[Site "https://www.chess.com"]

[Event "Titled Tuesday Blitz March 15 Late 2022"]
[White "Romero Ruscalleda, Josep"]
[Black "Eisen, Zane"]
[WhiteFideId "2231859"]
[BlackFideId "2098750"]
[WhiteElo "2332"]
[BlackElo "2016"]
[Result "1-0"]
[Round "03"]
[TimeControl "180+1"]
[Date "2022.03.16"]
[WhiteClock "0:02:41"]
[BlackClock "0:01:47"]

1. e4 {[%clk 0:03:00]}  c5 {[%clk 0:02:59]} 2. c3 {[%clk 0:03:00]}  d6 {[%clk 0:02:58]} 3. d4 {[%clk 0:03:00]}  Nd7 {[%clk 0:02:55]} 4. Nf3 {[%clk 0:02:58]}  g6 {[%clk 0:02:51]} 5. Bc4 {[%clk 0:02:57]}  Bg7 {[%clk 0:02:45]} 6. O-O {[%clk 0:02:55]}  Rb8 {[%clk 0:02:28]} 7. a4 {[%clk 0:02:44]}  a6 {[%clk 0:02:20]} 8. a5 {[%clk 0:02:43]}  b5 {[%clk 0:02:14]} 9. Bxf7+ {[%clk 0:02:42]}  Kxf7 {[%clk 0:02:12]} 10. Ng5+ {[%clk 0:02:42]}  Ke8 {[%clk 0:01:47]} 11. Ne6 {[%clk 0:02:41]} 1-0


[Site "https://www.chess.com"]

[Event "Titled Tuesday Blitz March 15 Late 2022"]
[White "Rosenberg, Evan S"]
[Black "Matlakov, Maxim"]
[WhiteFideId "2019299"]
[BlackFideId "4168003"]
[WhiteElo "2295"]
[BlackElo "2669"]
[Result "0-1"]
[Round "03"]
[TimeControl "180+1"]
[Date "2022.03.15"]
[WhiteClock "0:00:01"]
[BlackClock "0:00:32"]

1. Nf3 {[%clk 0:03:00]}  Nf6 {[%clk 0:02:59]} 2. c4 {[%clk 0:03:00]}  c6 {[%clk 0:02:59]} 3. d4 {[%clk 0:03:00]}  d5 {[%clk 0:02:59]} 4. cxd5 {[%clk 0:03:01]}  cxd5 {[%clk 0:02:59]} 5. Nc3 {[%clk 0:03:01]}  Nc6 {[%clk 0:02:59]} 6. Bf4 {[%clk 0:03:02]}  Ne4 {[%clk 0:02:57]} 7. e3 {[%clk 0:02:55]}  Nxc3 {[%clk 0:02:57]} 8. bxc3 {[%clk 0:02:55]}  g6 {[%clk 0:02:57]} 9. Ne5 {[%clk 0:02:48]}  Nxe5 {[%clk 0:02:45]} 10. Bxe5 {[%clk 0:02:47]}  f6 {[%clk 0:02:45]} 11. Bg3 {[%clk 0:02:43]}  Qa5 {[%clk 0:02:42]} 12. Qb3 {[%clk 0:02:34]}  e6 {[%clk 0:02:36]} 13. Bb5+ {[%clk 0:02:32]}  Kf7 {[%clk 0:02:34]} 14. O-O {[%clk 0:02:29]}  Be7 {[%clk 0:02:31]} 15. h4 {[%clk 0:01:49]}  Rd8 {[%clk 0:02:30]} 16. h5 {[%clk 0:01:47]}  Bd7 {[%clk 0:02:25]} 17. Bxd7 {[%clk 0:01:40]}  Rxd7 {[%clk 0:02:24]} 18. c4 {[%clk 0:01:30]}  dxc4 {[%clk 0:02:21]} 19. hxg6+ {[%clk 0:01:28]}  hxg6 {[%clk 0:02:22]} 20. Qxc4 {[%clk 0:01:28]}  Qd5 {[%clk 0:01:05]} 21. Qxd5 {[%clk 0:01:25]}  exd5 {[%clk 0:01:06]} 22. Rfc1 {[%clk 0:01:21]}  b5 {[%clk 0:01:05]} 23. Rab1 {[%clk 0:01:16]}  b4 {[%clk 0:01:05]} 24. Rc6 {[%clk 0:01:10]}  a5 {[%clk 0:01:04]} 25. f3 {[%clk 0:01:07]}  a4 {[%clk 0:00:57]} 26. Be1 {[%clk 0:01:07]}  Rb7 {[%clk 0:00:57]} 27. Kf2 {[%clk 0:01:00]}  b3 {[%clk 0:00:48]} 28. axb3 {[%clk 0:00:59]}  axb3 {[%clk 0:00:47]} 29. Bc3 {[%clk 0:00:48]}  Ra2+ {[%clk 0:00:46]} 30. Rb2 {[%clk 0:00:48]}  Ba3 {[%clk 0:00:42]} 31. Rxa2 {[%clk 0:00:43]}  bxa2 {[%clk 0:00:43]} 32. Ra6 {[%clk 0:00:41]}  Bb2 {[%clk 0:00:43]} 33. Bxb2 {[%clk 0:00:35]}  Rxb2+ {[%clk 0:00:43]} 34. Kg3 {[%clk 0:00:36]}  g5 {[%clk 0:00:42]} 35. e4 {[%clk 0:00:35]}  dxe4 {[%clk 0:00:41]} 36. fxe4 {[%clk 0:00:36]}  Ke7 {[%clk 0:00:40]} 37. d5 {[%clk 0:00:33]}  Kd7 {[%clk 0:00:39]} 38. Kf3 {[%clk 0:00:27]}  Kc7 {[%clk 0:00:39]} 39. g3 {[%clk 0:00:24]}  Kb7 {[%clk 0:00:40]} 40. Ra4 {[%clk 0:00:21]}  Kb6 {[%clk 0:00:38]} 41. Kg4 {[%clk 0:00:20]}  Rf2 {[%clk 0:00:33]} 42. Ra8 {[%clk 0:00:14]}  Kb7 {[%clk 0:00:33]} 43. Ra4 {[%clk 0:00:11]}  Kb6 {[%clk 0:00:33]} 44. Ra8 {[%clk 0:00:11]}  Kc5 {[%clk 0:00:34]} 45. Kh5 {[%clk 0:00:07]}  Kd6 {[%clk 0:00:33]} 46. Kg6 {[%clk 0:00:05]}  Ke5 {[%clk 0:00:34]} 47. Ra4 {[%clk 0:00:01]}  g4 {[%clk 0:00:32]} 0-1


[Site "https://www.chess.com"]

[Event "Titled Tuesday Blitz March 15 Late 2022"]
[White "Rozman, Levy"]
[Black "Oparin, Grigoriy"]
[WhiteFideId "2039877"]
[BlackFideId "24125890"]
[WhiteElo "2376"]
[BlackElo "2665"]
[Result "1/2-1/2"]
[Round "03"]
[TimeControl "180+1"]
[Date "2022.03.15"]
[WhiteClock "0:00:04"]
[BlackClock "0:00:15"]

1. d4 {[%clk 0:02:59]}  Nf6 {[%clk 0:03:00]} 2. Bg5 {[%clk 0:02:56]}  e6 {[%clk 0:02:59]} 3. Nd2 {[%clk 0:02:56]}  d5 {[%clk 0:02:59]} 4. e3 {[%clk 0:02:56]}  Be7 {[%clk 0:02:59]} 5. Bd3 {[%clk 0:02:55]}  Nbd7 {[%clk 0:02:59]} 6. c3 {[%clk 0:02:54]}  h6 {[%clk 0:03:00]} 7. Bxf6 {[%clk 0:02:53]}  Nxf6 {[%clk 0:03:01]} 8. f4 {[%clk 0:02:54]}  c6 {[%clk 0:02:38]} 9. Ngf3 {[%clk 0:02:53]}  Qb6 {[%clk 0:02:38]} 10. Rb1 {[%clk 0:02:50]}  Bd7 {[%clk 0:02:27]} 11. Ne5 {[%clk 0:02:48]}  Rf8 {[%clk 0:02:26]} 12. O-O {[%clk 0:02:43]}  O-O-O {[%clk 0:02:27]} 13. b4 {[%clk 0:02:42]}  Ne8 {[%clk 0:02:18]} 14. a4 {[%clk 0:02:36]}  Nd6 {[%clk 0:02:17]} 15. Nb3 {[%clk 0:02:09]}  Be8 {[%clk 0:02:14]} 16. b5 {[%clk 0:02:02]}  cxb5 {[%clk 0:02:04]} 17. Nc5 {[%clk 0:01:45]}  f6 {[%clk 0:01:54]} 18. Ng6 {[%clk 0:01:27]}  Bxg6 {[%clk 0:01:52]} 19. Bxg6 {[%clk 0:01:28]}  f5 {[%clk 0:00:48]} 20. Nxe6 {[%clk 0:01:00]}  Nc4 {[%clk 0:00:48]} 21. Nxf8 {[%clk 0:00:54]}  Rxf8 {[%clk 0:00:47]} 22. Bh5 {[%clk 0:00:44]}  Qc7 {[%clk 0:00:38]} 23. Re1 {[%clk 0:00:32]}  bxa4 {[%clk 0:00:33]} 24. Qxa4 {[%clk 0:00:31]}  a6 {[%clk 0:00:34]} 25. Bf3 {[%clk 0:00:30]}  Rd8 {[%clk 0:00:34]} 26. Qc2 {[%clk 0:00:25]}  g6 {[%clk 0:00:34]} 27. Rb3 {[%clk 0:00:24]}  Rd7 {[%clk 0:00:24]} 28. Qf2 {[%clk 0:00:22]}  Qc6 {[%clk 0:00:23]} 29. Reb1 {[%clk 0:00:20]}  Bd8 {[%clk 0:00:21]} 30. g4 {[%clk 0:00:18]}  Kb8 {[%clk 0:00:18]} 31. Kh1 {[%clk 0:00:15]}  Ka7 {[%clk 0:00:16]} 32. Be2 {[%clk 0:00:15]}  Nd6 {[%clk 0:00:14]} 33. Qg2 {[%clk 0:00:10]}  Ne4 {[%clk 0:00:14]} 34. Bf3 {[%clk 0:00:09]}  Re7 {[%clk 0:00:14]} 35. gxf5 {[%clk 0:00:09]}  gxf5 {[%clk 0:00:14]} 36. Bxe4 {[%clk 0:00:10]}  fxe4 {[%clk 0:00:13]} 37. R3b2 {[%clk 0:00:09]}  Ba5 {[%clk 0:00:13]} 38. Rf2 {[%clk 0:00:08]}  Qxc3 {[%clk 0:00:13]} 39. Re2 {[%clk 0:00:08]}  Qd3 {[%clk 0:00:13]} 40. Rf1 {[%clk 0:00:08]}  Bc7 {[%clk 0:00:13]} 41. f5 {[%clk 0:00:08]}  Qb5 {[%clk 0:00:13]} 42. f6 {[%clk 0:00:08]}  Rf7 {[%clk 0:00:13]} 43. Ref2 {[%clk 0:00:06]}  Qd7 {[%clk 0:00:14]} 44. Qg6 {[%clk 0:00:05]}  a5 {[%clk 0:00:14]} 45. Qf5 {[%clk 0:00:05]}  Qd6 {[%clk 0:00:14]} 46. Qg6 {[%clk 0:00:04]}  Qe6 {[%clk 0:00:14]} 47. Qf5 {[%clk 0:00:03]}  Qd6 {[%clk 0:00:15]} 48. Qg6 {[%clk 0:00:04]}  Qd7 {[%clk 0:00:15]} 49. Qf5 {[%clk 0:00:04]}  Qd6 {[%clk 0:00:15]} 1/2-1/2


[Site "https://www.chess.com"]

[Event "Titled Tuesday Blitz March 15 Late 2022"]
[White "Sanchez Alvares, Kelvin Antonio"]
[Black "Zhou, Qiyu"]
[WhiteFideId "3906680"]
[BlackFideId "505161"]
[WhiteElo "2193"]
[BlackElo "1925"]
[Result "1-0"]
[Round "03"]
[TimeControl "180+1"]
[Date "2022.03.16"]
[WhiteClock "0:02:32"]
[BlackClock "0:02:07"]

1. e4 {[%clk 0:02:41]}  e5 {[%clk 0:02:59]} 2. Nf3 {[%clk 0:02:40]}  Nc6 {[%clk 0:02:59]} 3. Bb5 {[%clk 0:02:41]}  a6 {[%clk 0:02:59]} 4. Ba4 {[%clk 0:02:41]}  Nf6 {[%clk 0:02:58]} 5. O-O {[%clk 0:02:41]}  b5 {[%clk 0:02:57]} 6. Bb3 {[%clk 0:02:41]}  Be7 {[%clk 0:02:57]} 7. a4 {[%clk 0:02:40]}  b4 {[%clk 0:02:56]} 8. d4 {[%clk 0:02:40]}  Nxd4 {[%clk 0:02:44]} 9. Nxd4 {[%clk 0:02:39]}  exd4 {[%clk 0:02:45]} 10. e5 {[%clk 0:02:39]}  Ng8 {[%clk 0:02:37]} 11. Qxd4 {[%clk 0:02:38]}  Bb7 {[%clk 0:02:07]} 12. Qc4 {[%clk 0:02:32]} 1-0


[Site "https://www.chess.com"]

[Event "Titled Tuesday Blitz March 15 Late 2022"]
[White "Schut, Han"]
[Black "Manukyan, Sargis A."]
[WhiteFideId "1005561"]
[BlackFideId "13303970"]
[WhiteElo "2057"]
[BlackElo "2187"]
[Result "0-1"]
[Round "03"]
[TimeControl "180+1"]
[Date "2022.03.16"]
[WhiteClock "0:01:21"]
[BlackClock "0:01:56"]

1. e4 {[%clk 0:02:48]}  c5 {[%clk 0:03:00]} 2. Nf3 {[%clk 0:02:47]}  d6 {[%clk 0:03:01]} 3. d4 {[%clk 0:02:47]}  cxd4 {[%clk 0:03:02]} 4. Nxd4 {[%clk 0:02:47]}  Nf6 {[%clk 0:03:02]} 5. f3 {[%clk 0:02:47]}  g6 {[%clk 0:03:03]} 6. c4 {[%clk 0:02:47]}  Bg7 {[%clk 0:03:04]} 7. Be3 {[%clk 0:02:48]}  O-O {[%clk 0:03:05]} 8. Qd2 {[%clk 0:02:48]}  Nc6 {[%clk 0:03:06]} 9. Nc3 {[%clk 0:02:49]}  Nxd4 {[%clk 0:03:06]} 10. Bxd4 {[%clk 0:02:50]}  Be6 {[%clk 0:03:06]} 11. Rc1 {[%clk 0:02:49]}  Qa5 {[%clk 0:03:07]} 12. b3 {[%clk 0:02:48]}  Rfc8 {[%clk 0:03:07]} 13. Be3 {[%clk 0:02:48]}  a6 {[%clk 0:03:06]} 14. Nd5 {[%clk 0:02:41]}  Qxd2+ {[%clk 0:03:05]} 15. Kxd2 {[%clk 0:02:42]}  Nxd5 {[%clk 0:03:03]} 16. cxd5 {[%clk 0:02:43]}  Rxc1 {[%clk 0:03:02]} 17. Kxc1 {[%clk 0:02:42]}  Rc8+ {[%clk 0:03:03]} 18. Kb1 {[%clk 0:02:40]}  Bd7 {[%clk 0:03:03]} 19. Bd3 {[%clk 0:02:36]}  Rc3 {[%clk 0:02:58]} 20. Bc2 {[%clk 0:02:23]}  f5 {[%clk 0:02:49]} 21. Bd2 {[%clk 0:02:14]}  Rc7 {[%clk 0:02:44]} 22. Rc1 {[%clk 0:02:13]}  fxe4 {[%clk 0:02:44]} 23. fxe4 {[%clk 0:02:07]}  Be5 {[%clk 0:02:41]} 24. g3 {[%clk 0:02:07]}  Kg7 {[%clk 0:02:40]} 25. Bd3 {[%clk 0:02:05]}  Rc8 {[%clk 0:02:38]} 26. Rxc8 {[%clk 0:02:02]}  Bxc8 {[%clk 0:02:38]} 27. Kc2 {[%clk 0:02:01]}  h5 {[%clk 0:02:31]} 28. Bc3 {[%clk 0:01:40]}  Kf6 {[%clk 0:02:30]} 29. Bxe5+ {[%clk 0:01:35]}  Kxe5 {[%clk 0:02:31]} 30. Kc3 {[%clk 0:01:35]}  Bh3 {[%clk 0:02:27]} 31. Kb4 {[%clk 0:01:19]}  Bg2 {[%clk 0:02:14]} 32. Ka5 {[%clk 0:01:19]}  Bxe4 {[%clk 0:02:15]} 33. Bxe4 {[%clk 0:01:18]}  Kxe4 {[%clk 0:02:16]} 34. Kb6 {[%clk 0:01:19]}  Kxd5 {[%clk 0:02:15]} 35. Kxb7 {[%clk 0:01:19]}  e5 {[%clk 0:02:01]} 36. Kxa6 {[%clk 0:01:19]}  e4 {[%clk 0:02:02]} 37. b4 {[%clk 0:01:19]}  e3 {[%clk 0:02:03]} 38. b5 {[%clk 0:01:20]}  e2 {[%clk 0:02:04]} 39. b6 {[%clk 0:01:20]}  e1=Q {[%clk 0:02:02]} 40. b7 {[%clk 0:01:21]}  Qb4 {[%clk 0:02:00]} 41. Ka7 {[%clk 0:01:21]}  Qa3+ {[%clk 0:01:59]} 42. Kb8 {[%clk 0:01:21]}  Qxa2 {[%clk 0:01:58]} 43. Kc8 {[%clk 0:01:21]}  Qc4+ {[%clk 0:01:55]} 44. Kd8 {[%clk 0:01:20]}  Qb5 {[%clk 0:01:55]} 45. Kc8 {[%clk 0:01:21]}  Qc6+ {[%clk 0:01:56]} 0-1


[Site "https://www.chess.com"]